[Event "*** SCC Grand Prix: Titled Tuesday Blitz"]
[Site "Chess.com"]
[Date "2020.06.09"]
[Round "5"]
[White "fabianvivasz"]
[Black "kingofkolkata"]
[Result "1-0"]
[WhiteElo "2281"]
[BlackElo "2178"]
[TimeControl "180+1"]
[EndTime "9:56:09 PDT"]
[Termination "fabianvivasz won by resignation"]

1. e4 {[%clk 0:03:00.9]} 1... e5 {[%clk 0:02:59.8]} 2. Nf3 {[%clk 0:02:57.8]}
2... Nc6 {[%clk 0:02:59.1]} 3. d4 {[%clk 0:02:57.1]} 3... exd4 {[%clk 0:02:59]}
4. Bc4 {[%clk 0:02:57.3]} 4... Nf6 {[%clk 0:02:58.9]} 5. e5 {[%clk 0:02:56.9]}
5... d5 {[%clk 0:02:59.1]} 6. Bb5 {[%clk 0:02:57]} 6... Ne4 {[%clk 0:02:59.6]}
7. Nxd4 {[%clk 0:02:57.4]} 7... Bd7 {[%clk 0:02:59.8]} 8. Bxc6 {[%clk
0:02:57.1]} 8... bxc6 {[%clk 0:03:00.7]} 9. O-O {[%clk 0:02:56.2]} 9... Bc5
{[%clk 0:03:01.3]} 10. f3 {[%clk 0:02:55.4]} 10... Ng5 {[%clk 0:03:01.6]} 11. f4
{[%clk 0:02:55.8]} 11... Ne4 {[%clk 0:03:01.3]} 12. Be3 {[%clk 0:02:52.6]} 12...
O-O {[%clk 0:03:01.1]} 13. Nd2 {[%clk 0:02:41.9]} 13... Nxd2 {[%clk 0:03:00.4]}
14. Qxd2 {[%clk 0:02:42.8]} 14... f6 {[%clk 0:02:59.5]} 15. Nb3 {[%clk
0:02:01.6]} 15... Bb6 {[%clk 0:02:48.9]} 16. Bc5 {[%clk 0:01:42.9]} 16... Re8
{[%clk 0:02:45.1]} 17. Rae1 {[%clk 0:01:42.4]} 17... fxe5 {[%clk 0:02:40.4]} 18.
fxe5 {[%clk 0:01:43.3]} 18... a5 {[%clk 0:02:02.1]} 19. a4 {[%clk 0:01:41.2]}
19... Rb8 {[%clk 0:01:54.5]} 20. Kh1 {[%clk 0:01:10]} 20... Re6 {[%clk
0:01:49.8]} 21. Rf8+ {[%clk 0:00:55]} 21... Qxf8 {[%clk 0:01:46.6]} 22. Bxf8
{[%clk 0:00:55.9]} 22... Rxf8 {[%clk 0:01:46.6]} 23. h3 {[%clk 0:00:39.4]} 23...
Rh6 {[%clk 0:01:40]} 24. Nd4 {[%clk 0:00:26]} 24... c5 {[%clk 0:01:29.9]} 25. e6
{[%clk 0:00:24.7]} 25... Bc8 {[%clk 0:00:56.9]} 26. e7 {[%clk 0:00:23.9]} 26...
Re8 {[%clk 0:00:56.8]} 27. Nf5 {[%clk 0:00:20.7]} 27... Bxf5 {[%clk 0:00:54.1]}
28. Qxd5+ {[%clk 0:00:21.1]} 28... Kh8 {[%clk 0:00:29.9]} 29. Qxf5 {[%clk
0:00:21.1]} 29... Rf6 {[%clk 0:00:24.2]} 30. Qd7 {[%clk 0:00:20.6]} 30... Rxe7
{[%clk 0:00:19.9]} 31. Qd8+ {[%clk 0:00:19.6]} 1-0

[Event "*** SCC Grand Prix: Titled Tuesday Blitz"]
[Site "Chess.com"]
[Date "2020.06.09"]
[Round "5"]
[White "Pintacara"]
[Black "NateSolon"]
[Result "0-1"]
[WhiteElo "2331"]
[BlackElo "2521"]
[TimeControl "180+1"]
[EndTime "9:56:18 PDT"]
[Termination "NateSolon won on time"]

1. d4 {[%clk 0:03:00.9]} 1... Nf6 {[%clk 0:02:59.2]} 2. Bg5 {[%clk 0:02:56]}
2... d5 {[%clk 0:02:57.4]} 3. Bxf6 {[%clk 0:02:55.6]} 3... exf6 {[%clk
0:02:50.2]} 4. e3 {[%clk 0:02:53.6]} 4... Bd6 {[%clk 0:02:48.1]} 5. c4 {[%clk
0:02:46.7]} 5... dxc4 {[%clk 0:02:43]} 6. Bxc4 {[%clk 0:02:47.6]} 6... O-O
{[%clk 0:02:42.5]} 7. Nc3 {[%clk 0:02:44.6]} 7... c6 {[%clk 0:02:37]} 8. Nf3
{[%clk 0:02:41.1]} 8... Nd7 {[%clk 0:02:28.7]} 9. O-O {[%clk 0:02:34.4]} 9... f5
{[%clk 0:02:28.2]} 10. a4 {[%clk 0:02:27.8]} 10... a5 {[%clk 0:02:13.9]} 11. Bd3
{[%clk 0:02:17.5]} 11... Nf6 {[%clk 0:02:11.2]} 12. Qc2 {[%clk 0:02:12.9]} 12...
g6 {[%clk 0:02:09.9]} 13. Rad1 {[%clk 0:02:01.6]} 13... Re8 {[%clk 0:02:05.6]}
14. Bc4 {[%clk 0:01:44.8]} 14... Qc7 {[%clk 0:01:52.6]} 15. g3 {[%clk
0:01:37.9]} 15... Be6 {[%clk 0:01:30.5]} 16. Bxe6 {[%clk 0:01:36.7]} 16... Rxe6
{[%clk 0:01:31.4]} 17. Nd2 {[%clk 0:01:16.6]} 17... Bb4 {[%clk 0:01:29.2]} 18.
Nc4 {[%clk 0:01:06.2]} 18... Rd8 {[%clk 0:01:24.4]} 19. Rc1 {[%clk 0:00:57.3]}
19... Kg7 {[%clk 0:01:19.1]} 20. Rfd1 {[%clk 0:00:55.3]} 20... h5 {[%clk
0:01:17.4]} 21. Ne2 {[%clk 0:00:51.7]} 21... h4 {[%clk 0:01:12.2]} 22. Nf4
{[%clk 0:00:51.4]} 22... Ree8 {[%clk 0:01:09.4]} 23. Ne5 {[%clk 0:00:29.3]}
23... Bd6 {[%clk 0:01:01.8]} 24. Nfd3 {[%clk 0:00:25.2]} 24... Nd5 {[%clk
0:00:59.6]} 25. Qb3 {[%clk 0:00:17.9]} 25... hxg3 {[%clk 0:00:56.7]} 26. hxg3
{[%clk 0:00:17.3]} 26... Rh8 {[%clk 0:00:51.3]} 27. Nf4 {[%clk 0:00:17.5]} 27...
Nb4 {[%clk 0:00:45.2]} 28. Nfd3 {[%clk 0:00:14.7]} 28... Qe7 {[%clk 0:00:41.6]}
29. Nxb4 {[%clk 0:00:13.5]} 29... axb4 {[%clk 0:00:42.1]} 30. Nf3 {[%clk
0:00:10.7]} 30... Qe4 {[%clk 0:00:38]} 31. Kg2 {[%clk 0:00:10.3]} 31... Rh2+
{[%clk 0:00:32.3]} 32. Kxh2 {[%clk 0:00:09.8]} 32... Qxf3 {[%clk 0:00:32.8]} 33.
Kg1 {[%clk 0:00:01.8]} 33... Rh8 {[%clk 0:00:31.2]} 0-1

[Event "*** SCC Grand Prix: Titled Tuesday Blitz"]
[Site "Chess.com"]
[Date "2020.06.09"]
[Round "5"]
[White "szefru"]
[Black "Angel_Hranitel_37"]
[Result "0-1"]
[WhiteElo "2144"]
[BlackElo "2375"]
[TimeControl "180+1"]
[EndTime "9:56:18 PDT"]
[Termination "Angel_Hranitel_37 won by resignation"]

1. Nf3 {[%clk 0:03:00.9]} 1... Nf6 {[%clk 0:03:00]} 2. b3 {[%clk 0:02:59.7]}
2... g6 {[%clk 0:03:00]} 3. Bb2 {[%clk 0:03:00.2]} 3... Bg7 {[%clk 0:03:00.9]}
4. d4 {[%clk 0:02:59.6]} 4... O-O {[%clk 0:02:59.5]} 5. Nbd2 {[%clk 0:02:59.9]}
5... d6 {[%clk 0:02:59.6]} 6. e4 {[%clk 0:03:00]} 6... c6 {[%clk 0:02:49.3]} 7.
Bd3 {[%clk 0:02:58.4]} 7... Nbd7 {[%clk 0:02:48.4]} 8. O-O {[%clk 0:02:57.7]}
8... Qc7 {[%clk 0:02:46.5]} 9. Re1 {[%clk 0:02:54.8]} 9... e5 {[%clk 0:02:46.3]}
10. c4 {[%clk 0:02:46.3]} 10... Re8 {[%clk 0:02:25.2]} 11. Rc1 {[%clk
0:02:43.3]} 11... b6 {[%clk 0:01:29.8]} 12. h3 {[%clk 0:02:36.3]} 12... Nh5
{[%clk 0:01:21.9]} 13. g3 {[%clk 0:02:32]} 13... exd4 {[%clk 0:01:08.8]} 14.
Bxd4 {[%clk 0:02:27]} 14... Ne5 {[%clk 0:01:07.8]} 15. Bf1 {[%clk 0:02:20.6]}
15... c5 {[%clk 0:00:58.7]} 16. Bxe5 {[%clk 0:02:17.1]} 16... dxe5 {[%clk
0:00:56.8]} 17. Bg2 {[%clk 0:02:07.5]} 17... Bh6 {[%clk 0:00:44.9]} 18. Rc3
{[%clk 0:01:56.3]} 18... Rd8 {[%clk 0:00:41.9]} 19. Qe2 {[%clk 0:01:52.4]} 19...
Bb7 {[%clk 0:00:37.4]} 20. Rd3 {[%clk 0:01:40.5]} 20... Rxd3 {[%clk 0:00:36.9]}
21. Qxd3 {[%clk 0:01:40.3]} 21... Rd8 {[%clk 0:00:37.8]} 22. Qc3 {[%clk
0:01:36.8]} 22... Bxd2 {[%clk 0:00:27.8]} 23. Nxd2 {[%clk 0:01:34.9]} 23... Qd6
{[%clk 0:00:27.8]} 24. Nf3 {[%clk 0:01:31.6]} 24... f6 {[%clk 0:00:27.4]} 25.
Bf1 {[%clk 0:01:19.9]} 25... Ng7 {[%clk 0:00:17.6]} 26. Be2 {[%clk 0:01:16]}
26... Ne6 {[%clk 0:00:18]} 27. Qe3 {[%clk 0:01:06.4]} 27... Nd4 {[%clk
0:00:18.2]} 28. Nxd4 {[%clk 0:00:58.6]} 28... exd4 {[%clk 0:00:17.3]} 29. Qd3
{[%clk 0:00:44.4]} 29... Qe6 {[%clk 0:00:17]} 30. Bf3 {[%clk 0:00:37.3]} 30...
Qxh3 {[%clk 0:00:16.2]} 31. Bg2 {[%clk 0:00:37.3]} 31... Qe6 {[%clk 0:00:15.8]}
32. Qf3 {[%clk 0:00:33.5]} 32... f5 {[%clk 0:00:15]} 33. exf5 {[%clk 0:00:29.4]}
33... Qxe1+ {[%clk 0:00:14.7]} 34. Bf1 {[%clk 0:00:29.4]} 34... Bxf3 {[%clk
0:00:15.1]} 0-1

[Event "*** SCC Grand Prix: Titled Tuesday Blitz"]
[Site "Chess.com"]
[Date "2020.06.09"]
[Round "5"]
[White "dosto07"]
[Black "RaphCamora"]
[Result "0-1"]
[WhiteElo "2130"]
[BlackElo "2475"]
[TimeControl "180+1"]
[EndTime "9:56:20 PDT"]
[Termination "RaphCamora won on time"]

1. e4 {[%clk 0:03:00.9]} 1... c5 {[%clk 0:02:59.1]} 2. Nf3 {[%clk 0:02:59.8]}
2... Nc6 {[%clk 0:02:58.3]} 3. Bb5 {[%clk 0:02:58.7]} 3... g6 {[%clk 0:02:57.4]}
4. O-O {[%clk 0:02:57.1]} 4... Bg7 {[%clk 0:02:57]} 5. c3 {[%clk 0:02:56.9]}
5... Nf6 {[%clk 0:02:54.7]} 6. Re1 {[%clk 0:02:56.3]} 6... O-O {[%clk
0:02:53.7]} 7. e5 {[%clk 0:02:55.9]} 7... Nd5 {[%clk 0:02:52.5]} 8. d4 {[%clk
0:02:56.2]} 8... cxd4 {[%clk 0:02:48.5]} 9. cxd4 {[%clk 0:02:56]} 9... d6 {[%clk
0:02:46.7]} 10. Nc3 {[%clk 0:02:55.4]} 10... Nxc3 {[%clk 0:02:13.8]} 11. bxc3
{[%clk 0:02:54.4]} 11... dxe5 {[%clk 0:02:12.8]} 12. Bxc6 {[%clk 0:02:53.3]}
12... bxc6 {[%clk 0:02:12.6]} 13. Nxe5 {[%clk 0:02:53.9]} 13... c5 {[%clk
0:02:12.8]} 14. Nc6 {[%clk 0:02:48.2]} 14... Qd6 {[%clk 0:02:07.4]} 15. Nxe7+
{[%clk 0:02:42.7]} 15... Kh8 {[%clk 0:02:07.9]} 16. Nxc8 {[%clk 0:02:29.3]}
16... Raxc8 {[%clk 0:02:08.8]} 17. Ba3 {[%clk 0:02:27.7]} 17... Rfd8 {[%clk
0:01:52.6]} 18. Bxc5 {[%clk 0:02:09.9]} 18... Qf4 {[%clk 0:01:29.7]} 19. Qb3
{[%clk 0:01:45]} 19... a5 {[%clk 0:01:26]} 20. Re7 {[%clk 0:01:33.6]} 20... Kg8
{[%clk 0:00:59.8]} 21. g3 {[%clk 0:01:15.1]} 21... Qf3 {[%clk 0:00:54.5]} 22.
Rae1 {[%clk 0:01:06.6]} 22... h5 {[%clk 0:00:52.8]} 23. R1e3 {[%clk 0:00:33.7]}
23... Qf5 {[%clk 0:00:51.7]} 24. Qb5 {[%clk 0:00:23.5]} 24... Rb8 {[%clk
0:00:46.6]} 25. Qd3 {[%clk 0:00:12.5]} 25... Rb1+ {[%clk 0:00:45.4]} 26. Kg2
{[%clk 0:00:11.6]} 26... Qd5+ {[%clk 0:00:44.8]} 27. Qe4 {[%clk 0:00:10.7]}
27... Qxa2 {[%clk 0:00:24.5]} 28. Re8+ {[%clk 0:00:09.8]} 28... Rxe8 {[%clk
0:00:24.6]} 29. Qxe8+ {[%clk 0:00:09.5]} 29... Kh7 {[%clk 0:00:25.3]} 30. Qe4
{[%clk 0:00:01.7]} 30... Rb2 {[%clk 0:00:23.5]} 0-1

[Event "*** SCC Grand Prix: Titled Tuesday Blitz"]
[Site "Chess.com"]
[Date "2020.06.09"]
[Round "5"]
[White "colegiodemadrid"]
[Black "Bhagya_2312"]
[Result "1-0"]
[WhiteElo "2372"]
[BlackElo "2135"]
[TimeControl "180+1"]
[EndTime "9:56:20 PDT"]
[Termination "colegiodemadrid won by checkmate"]

1. e4 {[%clk 0:03:00.9]} 1... c6 {[%clk 0:02:59.3]} 2. d4 {[%clk 0:02:59.6]}
2... d5 {[%clk 0:02:59.3]} 3. e5 {[%clk 0:02:59.8]} 3... Bf5 {[%clk 0:02:58.7]}
4. h4 {[%clk 0:03:00.2]} 4... h5 {[%clk 0:02:58.1]} 5. Bd3 {[%clk 0:02:59]} 5...
Bxd3 {[%clk 0:02:58]} 6. Qxd3 {[%clk 0:02:59.9]} 6... e6 {[%clk 0:02:58.1]} 7.
Bg5 {[%clk 0:02:58.2]} 7... Qb6 {[%clk 0:02:57.7]} 8. Nd2 {[%clk 0:02:54.1]}
8... Nd7 {[%clk 0:02:54.7]} 9. Ngf3 {[%clk 0:02:50.1]} 9... Nh6 {[%clk
0:02:50.3]} 10. O-O {[%clk 0:02:43.2]} 10... Nf5 {[%clk 0:02:47.5]} 11. c4
{[%clk 0:02:43.3]} 11... Qa6 {[%clk 0:02:45.3]} 12. Qc2 {[%clk 0:02:34.4]} 12...
Nb6 {[%clk 0:02:29.5]} 13. b3 {[%clk 0:02:27.8]} 13... Rc8 {[%clk 0:02:25.5]}
14. c5 {[%clk 0:02:15.4]} 14... Nd7 {[%clk 0:02:24]} 15. a4 {[%clk 0:02:15.6]}
15... Qa5 {[%clk 0:01:59.2]} 16. b4 {[%clk 0:01:57.2]} 16... Qc7 {[%clk
0:01:58.7]} 17. b5 {[%clk 0:01:43.2]} 17... f6 {[%clk 0:01:41.8]} 18. exf6
{[%clk 0:01:40.2]} 18... gxf6 {[%clk 0:01:40.8]} 19. Rfe1 {[%clk 0:01:41.1]}
19... Kf7 {[%clk 0:01:39.7]} 20. Rxe6 {[%clk 0:01:27.7]} 20... Ng7 {[%clk
0:01:14]} 21. Rxf6+ {[%clk 0:00:41.4]} 21... Nxf6 {[%clk 0:01:12.5]} 22. Ne5+
{[%clk 0:00:41.8]} 22... Ke6 {[%clk 0:00:33.8]} 23. Qg6 {[%clk 0:00:21.9]} 23...
Ne8 {[%clk 0:00:32.7]} 24. Re1 {[%clk 0:00:18.5]} 24... Qg7 {[%clk 0:00:20.7]}
25. Nxc6+ {[%clk 0:00:17.7]} 25... Kd7 {[%clk 0:00:20.6]} 26. Qf5+ {[%clk
0:00:17.6]} 26... Kc7 {[%clk 0:00:20.2]} 27. Bf4+ {[%clk 0:00:18]} 27... Nd6
{[%clk 0:00:18.7]} 28. cxd6+ {[%clk 0:00:18.1]} 28... Bxd6 {[%clk 0:00:17.9]}
29. Re7+ {[%clk 0:00:18.7]} 29... Qxe7 {[%clk 0:00:15.8]} 30. Nxe7 {[%clk
0:00:19.6]} 30... Bxf4 {[%clk 0:00:15.2]} 31. Qxf4+ {[%clk 0:00:20.5]} 31... Kd7
{[%clk 0:00:15]} 32. Nf5 {[%clk 0:00:20.6]} 32... Rcf8 {[%clk 0:00:13.3]} 33.
Qd6+ {[%clk 0:00:19.7]} 33... Kc8 {[%clk 0:00:13.6]} 34. Ne7# {[%clk 0:00:20.1]}
1-0

[Event "*** SCC Grand Prix: Titled Tuesday Blitz"]
[Site "Chess.com"]
[Date "2020.06.09"]
[Round "5"]
[White "maciek_92"]
[Black "yamalchess"]
[Result "1-0"]
[WhiteElo "2667"]
[BlackElo "2442"]
[TimeControl "180+1"]
[EndTime "9:56:22 PDT"]
[Termination "maciek_92 won by resignation"]

1. d4 {[%clk 0:03:00.9]} 1... f5 {[%clk 0:02:50.2]} 2. c4 {[%clk 0:03:00]} 2...
Nf6 {[%clk 0:02:48.6]} 3. Nc3 {[%clk 0:03:00.5]} 3... g6 {[%clk 0:02:48.2]} 4.
g3 {[%clk 0:02:59.1]} 4... Bg7 {[%clk 0:02:47.9]} 5. Bg2 {[%clk 0:02:59.7]} 5...
O-O {[%clk 0:02:47.6]} 6. Nh3 {[%clk 0:02:59]} 6... Nc6 {[%clk 0:02:47.5]} 7.
O-O {[%clk 0:02:57]} 7... d6 {[%clk 0:02:41.9]} 8. d5 {[%clk 0:02:55.3]} 8...
Ne5 {[%clk 0:02:41.3]} 9. b3 {[%clk 0:02:52.7]} 9... c6 {[%clk 0:02:35.1]} 10.
Bb2 {[%clk 0:02:48.9]} 10... Qc7 {[%clk 0:02:31.7]} 11. Rc1 {[%clk 0:02:47.8]}
11... Bd7 {[%clk 0:02:28.5]} 12. Nf4 {[%clk 0:02:43.4]} 12... Rae8 {[%clk
0:02:17.3]} 13. dxc6 {[%clk 0:02:16.9]} 13... bxc6 {[%clk 0:02:15.9]} 14. c5
{[%clk 0:02:15.6]} 14... d5 {[%clk 0:02:09.6]} 15. b4 {[%clk 0:01:55.1]} 15...
Nc4 {[%clk 0:02:05.7]} 16. Ncxd5 {[%clk 0:01:12.4]} 16... cxd5 {[%clk
0:01:54.3]} 17. Bxf6 {[%clk 0:01:12.1]} 17... Bxf6 {[%clk 0:01:39.2]} 18. Nxd5
{[%clk 0:01:06.5]} 18... Qc8 {[%clk 0:01:08]} 19. Rxc4 {[%clk 0:00:56.5]} 19...
Bb5 {[%clk 0:01:07.9]} 20. Nxf6+ {[%clk 0:00:54.3]} 20... exf6 {[%clk 0:01:02]}
21. Rd4 {[%clk 0:00:53.3]} 21... Bxe2 {[%clk 0:01:00.1]} 22. Qb3+ {[%clk
0:00:53.2]} 22... Kh8 {[%clk 0:01:00]} 23. Rc1 {[%clk 0:00:52.7]} 23... Bb5
{[%clk 0:00:56.8]} 24. a4 {[%clk 0:00:45.6]} 24... Bc6 {[%clk 0:00:54.2]} 25.
Bxc6 {[%clk 0:00:46.1]} 25... Qxc6 {[%clk 0:00:54.3]} 26. b5 {[%clk 0:00:46.8]}
26... Qc7 {[%clk 0:00:46]} 27. c6 {[%clk 0:00:46.6]} 27... Re2 {[%clk
0:00:44.4]} 28. Qd3 {[%clk 0:00:28]} 28... Rfe8 {[%clk 0:00:41.3]} 29. Rd7
{[%clk 0:00:26.4]} 29... Qb6 {[%clk 0:00:40.1]} 30. Qd4 {[%clk 0:00:25.9]} 30...
Qxd4 {[%clk 0:00:31.1]} 31. Rxd4 {[%clk 0:00:26.8]} 31... Rc8 {[%clk 0:00:22]}
32. c7 {[%clk 0:00:21.6]} 32... Ree8 {[%clk 0:00:21.6]} 33. a5 {[%clk
0:00:21.2]} 33... Kg7 {[%clk 0:00:18.8]} 34. b6 {[%clk 0:00:21.5]} 34... axb6
{[%clk 0:00:18.4]} 35. axb6 {[%clk 0:00:22.4]} 35... Re7 {[%clk 0:00:18.7]} 36.
Rd8 {[%clk 0:00:21.4]} 1-0

[Event "*** SCC Grand Prix: Titled Tuesday Blitz"]
[Site "Chess.com"]
[Date "2020.06.09"]
[Round "5"]
[White "AliKa2810"]
[Black "amatatanav"]
[Result "1-0"]
[WhiteElo "2590"]
[BlackElo "2419"]
[TimeControl "180+1"]
[EndTime "9:56:25 PDT"]
[Termination "AliKa2810 won on time"]

1. d4 {[%clk 0:03:00.9]} 1... Nf6 {[%clk 0:02:59.6]} 2. c4 {[%clk 0:02:59.9]}
2... e6 {[%clk 0:03:00]} 3. Nf3 {[%clk 0:03:00.2]} 3... d5 {[%clk 0:03:00.4]} 4.
Nc3 {[%clk 0:02:59.9]} 4... Be7 {[%clk 0:02:59.8]} 5. Bf4 {[%clk 0:02:59.5]}
5... O-O {[%clk 0:02:59.3]} 6. e3 {[%clk 0:03:00.1]} 6... Nbd7 {[%clk
0:02:58.8]} 7. c5 {[%clk 0:02:59.6]} 7... Nh5 {[%clk 0:02:58.2]} 8. Bd3 {[%clk
0:02:59.8]} 8... Nxf4 {[%clk 0:02:57.4]} 9. exf4 {[%clk 0:03:00.7]} 9... b6
{[%clk 0:02:57.8]} 10. b4 {[%clk 0:02:59.3]} 10... a5 {[%clk 0:02:57.9]} 11. a3
{[%clk 0:02:58.8]} 11... c6 {[%clk 0:02:58.4]} 12. O-O {[%clk 0:02:57.5]} 12...
Ba6 {[%clk 0:02:58.3]} 13. Re1 {[%clk 0:02:57.4]} 13... Bxd3 {[%clk 0:02:56.2]}
14. Qxd3 {[%clk 0:02:57.1]} 14... Qc7 {[%clk 0:02:49.9]} 15. g3 {[%clk
0:02:56.7]} 15... Ra7 {[%clk 0:02:37.3]} 16. Kg2 {[%clk 0:02:52]} 16... Rfa8
{[%clk 0:02:34.8]} 17. Rab1 {[%clk 0:02:44.5]} 17... axb4 {[%clk 0:02:16.2]} 18.
axb4 {[%clk 0:02:45.4]} 18... g6 {[%clk 0:02:07.4]} 19. h4 {[%clk 0:02:43.8]}
19... Bf6 {[%clk 0:02:02.4]} 20. h5 {[%clk 0:02:36.3]} 20... Ra3 {[%clk
0:01:56.7]} 21. Ne5 {[%clk 0:02:30.4]} 21... Nxe5 {[%clk 0:01:18.8]} 22. fxe5
{[%clk 0:02:29.3]} 22... Bg5 {[%clk 0:01:05.8]} 23. Re2 {[%clk 0:01:50]} 23...
bxc5 {[%clk 0:00:57.9]} 24. bxc5 {[%clk 0:01:50.9]} 24... Qa5 {[%clk 0:00:57.2]}
25. Rc2 {[%clk 0:01:48.9]} 25... Qa6 {[%clk 0:00:51.9]} 26. Qd1 {[%clk
0:01:12.9]} 26... Qc4 {[%clk 0:00:35]} 27. Ne4 {[%clk 0:01:09.7]} 27... Rd3
{[%clk 0:00:07]} 28. Qe2 {[%clk 0:00:51]} 28... Qxc2 {[%clk 0:00:04.1]} 29. Qxc2
{[%clk 0:00:49.6]} 29... dxe4 {[%clk 0:00:05]} 30. Rb4 {[%clk 0:00:23.6]} 30...
Rd8 {[%clk 0:00:03.7]} 31. Qa4 {[%clk 0:00:22.1]} 31... Kg7 {[%clk 0:00:02]} 32.
Qxc6 {[%clk 0:00:21.4]} 1-0

[Event "*** SCC Grand Prix: Titled Tuesday Blitz"]
[Site "Chess.com"]
[Date "2020.06.09"]
[Round "5"]
[White "Gabrielian_Artur"]
[Black "AnishGiri"]
[Result "0-1"]
[WhiteElo "2747"]
[BlackElo "2972"]
[TimeControl "180+1"]
[EndTime "9:56:30 PDT"]
[Termination "AnishGiri won by resignation"]

1. e4 {[%clk 0:03:00.9]} 1... c5 {[%clk 0:03:00.4]} 2. Nc3 {[%clk 0:03:00.7]}
2... d6 {[%clk 0:03:00]} 3. d4 {[%clk 0:03:00.6]} 3... cxd4 {[%clk 0:02:59.7]}
4. Qxd4 {[%clk 0:03:01.5]} 4... Nc6 {[%clk 0:03:00.1]} 5. Qd2 {[%clk 0:03:01.8]}
5... g6 {[%clk 0:03:00.4]} 6. b3 {[%clk 0:03:02.2]} 6... Bh6 {[%clk 0:03:00.1]}
7. f4 {[%clk 0:03:01.9]} 7... Nf6 {[%clk 0:03:00.4]} 8. Bb2 {[%clk 0:03:01.2]}
8... O-O {[%clk 0:03:00.4]} 9. O-O-O {[%clk 0:03:00.6]} 9... e5 {[%clk
0:03:01.1]} 10. g3 {[%clk 0:03:01]} 10... Re8 {[%clk 0:02:54.7]} 11. Kb1 {[%clk
0:03:00]} 11... Nd4 {[%clk 0:02:50.9]} 12. Nge2 {[%clk 0:02:57.7]} 12... Bg4
{[%clk 0:02:49.1]} 13. Nxd4 {[%clk 0:02:54.5]} 13... exd4 {[%clk 0:01:55.4]} 14.
Qxd4 {[%clk 0:02:54.1]} 14... Bg7 {[%clk 0:01:56]} 15. Nd5 {[%clk 0:02:15.4]}
15... Bxd1 {[%clk 0:01:43.9]} 16. Nxf6+ {[%clk 0:02:03.6]} 16... Bxf6 {[%clk
0:01:42.9]} 17. Qxf6 {[%clk 0:02:04.2]} 17... Qxf6 {[%clk 0:01:43.5]} 18. Bxf6
{[%clk 0:02:04.4]} 18... Bf3 {[%clk 0:01:36.1]} 19. Rg1 {[%clk 0:02:04.2]} 19...
Bxe4 {[%clk 0:01:32.3]} 20. Bh3 {[%clk 0:01:53.8]} 20... Bf5 {[%clk 0:00:49.4]}
21. Bxf5 {[%clk 0:01:53.3]} 21... gxf5 {[%clk 0:00:49.2]} 22. g4 {[%clk
0:01:53.8]} 22... Rac8 {[%clk 0:00:20.6]} 23. gxf5+ {[%clk 0:01:43.5]} 23... Kf8
{[%clk 0:00:21.3]} 24. c4 {[%clk 0:00:35.3]} 24... Re2 {[%clk 0:00:21]} 25. Rd1
{[%clk 0:00:25.4]} 25... Rxh2 {[%clk 0:00:14.5]} 26. Rxd6 {[%clk 0:00:24.6]}
26... Ke8 {[%clk 0:00:13.4]} 27. c5 {[%clk 0:00:19.3]} 27... h5 {[%clk
0:00:13.3]} 28. Bg5 {[%clk 0:00:18.8]} 28... h4 {[%clk 0:00:11.7]} 29. b4 {[%clk
0:00:17.8]} 29... h3 {[%clk 0:00:11.6]} 30. Rh6 {[%clk 0:00:17.9]} 30... Kd7
{[%clk 0:00:10.6]} 31. a4 {[%clk 0:00:15.5]} 31... a6 {[%clk 0:00:10.4]} 32. b5
{[%clk 0:00:15.6]} 32... axb5 {[%clk 0:00:10.3]} 33. axb5 {[%clk 0:00:16.5]}
33... Rxc5 {[%clk 0:00:10.6]} 34. Rh7 {[%clk 0:00:15.4]} 34... Rxb5+ {[%clk
0:00:10.5]} 35. Kc1 {[%clk 0:00:15.4]} 35... Rxf5 {[%clk 0:00:11.2]} 0-1

[Event "*** SCC Grand Prix: Titled Tuesday Blitz"]
[Site "Chess.com"]
[Date "2020.06.09"]
[Round "5"]
[White "bascheyaro"]
[Black "SamuelGhimpu2003"]
[Result "1/2-1/2"]
[WhiteElo "2741"]
[BlackElo "2604"]
[TimeControl "180+1"]
[EndTime "9:56:32 PDT"]
[Termination "Game drawn by agreement"]

1. d4 {[%clk 0:03:00.9]} 1... Nf6 {[%clk 0:03:00]} 2. c4 {[%clk 0:03:01.1]} 2...
g6 {[%clk 0:03:00.3]} 3. Nf3 {[%clk 0:03:01.6]} 3... Bg7 {[%clk 0:03:00.4]} 4.
Nc3 {[%clk 0:03:02.1]} 4... d5 {[%clk 0:03:00.5]} 5. Bf4 {[%clk 0:03:02.2]} 5...
O-O {[%clk 0:02:59.2]} 6. c5 {[%clk 0:03:02.6]} 6... Ne4 {[%clk 0:02:47.8]} 7.
e3 {[%clk 0:03:02.4]} 7... b6 {[%clk 0:02:45.5]} 8. cxb6 {[%clk 0:03:00.9]} 8...
axb6 {[%clk 0:02:46.4]} 9. Qb3 {[%clk 0:03:00.8]} 9... Nxc3 {[%clk 0:02:41.5]}
10. bxc3 {[%clk 0:03:00.7]} 10... c5 {[%clk 0:02:26.9]} 11. Bb5 {[%clk
0:03:00.3]} 11... Ba6 {[%clk 0:02:18.7]} 12. Bxa6 {[%clk 0:02:56.8]} 12... Rxa6
{[%clk 0:02:19.6]} 13. O-O {[%clk 0:02:47.9]} 13... c4 {[%clk 0:02:11.9]} 14.
Qb2 {[%clk 0:02:46.9]} 14... Ra5 {[%clk 0:02:02.4]} 15. Rfb1 {[%clk 0:02:45.3]}
15... b5 {[%clk 0:01:59.4]} 16. Bxb8 {[%clk 0:02:41.4]} 16... Qxb8 {[%clk
0:02:00.3]} 17. a4 {[%clk 0:02:41.7]} 17... Qb6 {[%clk 0:01:33.3]} 18. axb5
{[%clk 0:02:41.6]} 18... Rxa1 {[%clk 0:01:34.2]} 19. Qxa1 {[%clk 0:02:41.5]}
19... Rb8 {[%clk 0:01:35]} 20. g3 {[%clk 0:02:39]} 20... e6 {[%clk 0:01:30.5]}
21. Nd2 {[%clk 0:02:26.3]} 21... h5 {[%clk 0:01:27.1]} 22. Qa6 {[%clk
0:02:25.2]} 22... e5 {[%clk 0:01:20.5]} 23. f4 {[%clk 0:01:16.1]} 23... e4
{[%clk 0:00:52.2]} 24. Kg2 {[%clk 0:01:05.2]} 24... Bf8 {[%clk 0:00:51.5]} 25.
h3 {[%clk 0:01:04.9]} 25... Bd6 {[%clk 0:00:46.1]} 26. Ra1 {[%clk 0:00:47.9]}
26... Bc7 {[%clk 0:00:29.9]} 27. Qxb6 {[%clk 0:00:44.5]} 27... Rxb6 {[%clk
0:00:30.8]} 28. Ra7 {[%clk 0:00:39.5]} 28... Bb8 {[%clk 0:00:30.7]} 29. Ra5
{[%clk 0:00:39]} 29... Bc7 {[%clk 0:00:28.9]} 30. Kf1 {[%clk 0:00:39]} 30... Kg7
{[%clk 0:00:23.5]} 31. Ke2 {[%clk 0:00:38.8]} 31... Kf6 {[%clk 0:00:20.9]} 32.
Ra6 {[%clk 0:00:34.1]} 32... Ke7 {[%clk 0:00:21]} 33. Rxb6 {[%clk 0:00:33.3]}
33... Bxb6 {[%clk 0:00:21.9]} 34. g4 {[%clk 0:00:32.8]} 34... hxg4 {[%clk
0:00:20.4]} 35. hxg4 {[%clk 0:00:33]} 35... Ba5 {[%clk 0:00:21.3]} 36. Nb1
{[%clk 0:00:30.7]} 36... Kd7 {[%clk 0:00:21.6]} 37. Kd2 {[%clk 0:00:30.2]} 37...
Kc7 {[%clk 0:00:21.8]} 38. Kc2 {[%clk 0:00:30.6]} 38... Kb7 {[%clk 0:00:21.7]}
39. f5 {[%clk 0:00:28.7]} 39... gxf5 {[%clk 0:00:19.6]} 40. gxf5 {[%clk
0:00:29.6]} 40... Kc7 {[%clk 0:00:20.4]} 41. Nd2 {[%clk 0:00:25.8]} 1/2-1/2